Cogmind - Beta 15 @@@ ROGUE MODE // 2025.07.16 @ 22:57:46 Player: Darcyisverycute Result: Escaped! Performance ------------- Evolutions (9) 4500 Regions Visited (11) 2200 Robots Destroyed (148) 740 Value Destroyed (3802) 3802 Prototype IDs (21) 420 Alien Tech Used (2) 400 Bonus (3099) 3099 TOTAL SCORE: 15161 Bonus ------- High Alert Combat Kills 99 Win 3000 Cogmind --------- Core Integrity 1557/1600 Matter 254/300 Energy 142/150 System Corruption 0% Temperature Hot (279) Movement Flying (10) Location To Epsilon Eridani Parts ------- > --- POWER (2) -------- Improved Fusion Compressor Micro Antimatter Reactor > --- PROPULSION (9) --- Improved Flight Unit Improved VTOL Module Improved Cesium-ion Thruster Cooled VTOL Module Cooled VTOL Module Improved Q-thruster Cooled Q-thruster Cooled Q-thruster Cooled Q-thruster > --- UTILITY (9) ------ Advanced Power Amplifier Advanced Power Amplifier Advanced Cooling System Structural Scanner Advanced Sensor Array Experimental Signal Interpreter Core Analyzer Hacking Suite Improved Hacking Suite > --- WEAPON (5) ------- Advanced Plasma Cannon Enhanced Autogun Hypervelocity Railgun Shock Maul Gravity Flail > --- INVENTORY (5) ---- Advanced ECM Suite Advanced Reaction Control System Terrabomb Plasma Cutter Peak State ------------ > --- POWER ------------ Improved Fusion Compressor Micro Antimatter Reactor > --- PROPULSION ------- Improved Flight Unit Improved VTOL Module Improved Cesium-ion Thruster Cooled VTOL Module Cooled VTOL Module Improved Q-thruster Cooled Q-thruster Cooled Q-thruster Cooled Q-thruster > --- UTILITY ---------- Advanced Power Amplifier Advanced Power Amplifier Advanced Cooling System Structural Scanner Advanced Sensor Array Experimental Signal Interpreter Core Analyzer Hacking Suite Improved Hacking Suite > --- WEAPON ----------- Advanced Plasma Cannon Enhanced Autogun Hypervelocity Railgun Shock Maul Gravity Flail > --- INVENTORY -------- Advanced ECM Suite Advanced Reaction Control System Terrabomb Plasma Cutter [Rating: 157] Favorites ----------- Power Cooled Ion Engine Engine Cooled Ion Engine Power Core Improved Fusion Compressor Reactor Micro Antimatter Reactor Propulsion Light Treads Treads Light Treads Leg Aluminum Leg Flight Unit Improved Flight Unit Utility High-capacity Storage Unit Device Structural Scanner Storage High-capacity Storage Unit Processor Core Analyzer Hackware Improved Hacking Suite Protection Medium Armor Plating Weapon Enhanced Autogun Energy Gun Heavy EM Shotgun Energy Cannon Advanced Plasma Cannon Ballistic Gun Enhanced Autogun Ballistic Cannon Improved Light Cannon Launcher Missile Launcher Impact Weapon Shock Maul Slashing Weapon Katana Build | -11 -10 -9 -8 -7 -6 -5 -4 -3 -3 -2 -1 ------- Run | Yrd Mat Mat Mat Fac Fac Fac Fac Res Qua Res Acc Slots Evolved 18 | . . 2 2 2 2 2 2 2 . 2 2 Power 1 | . . . . . . . 1 . . . . Propulsion 7 | . . 1 1 1 . 1 . 1 . 1 1 Utility 7 | . . 1 . . 1 1 1 1 . 1 1 Weapon 3 | . . . 1 1 1 . . . . . . Parts Attached 118 | 8 6 39 20 11 9 2 3 5 4 5 6 Power 10 | 1 1 4 1 . 1 . . 1 . 1 . Engine 7 | 1 1 4 1 . . . . . . . . Core 1 | . . . . . . . . 1 . . . Reactor 2 | . . . . . 1 . . . . 1 . Propulsion 42 | 2 2 15 10 5 2 1 . . 1 1 3 Treads 19 | 2 . 9 8 . . . . . . . . Leg 9 | . 2 5 2 . . . . . . . . Wheel . | . . . . . . . . . . . . Hover . | . . . . . . . . . . . . Flight 14 | . . 1 . 5 2 1 . . 1 1 3 Utility 35 | 3 1 9 3 4 3 1 2 2 2 3 2 Device 16 | 2 . 4 . 1 2 . 1 1 . 3 2 Storage 3 | 1 1 . 1 . . . . . . . . Processor 8 | . . . 1 3 1 1 1 . 1 . . Hackware 2 | . . . . . . . . 1 1 . . Protection 6 | . . 5 1 . . . . . . . . Artifact . | . . . . . . . . . . . . Weapon 31 | 2 2 11 6 2 3 . 1 2 1 . 1 Energy Gun 1 | . . 1 . . . . . . . . . Energy Cannon 1 | . . . . . . . 1 . . . . Ballistic Gun 20 | 2 2 9 4 . 1 . . 1 1 . . Ballistic Cannon 1 | . . 1 . . . . . . . . . Launcher 2 | . . . 1 1 . . . . . . . Special Weapon . | . . . . . . . . . . . . Impact Weapon 2 | . . . . . 1 . . . . . 1 Slashing Weapon 4 | . . . 1 1 1 . . 1 . . . Piercing Weapon . | . . . . . . . . . . . . Special Melee Weapon . | . . . . . . . . . . . . Unidentified Prototypes 17 | . . 4 1 . 6 . . . 3 1 2 Parts Lost 21 | . 5 6 3 . . . 1 2 1 1 2 Power 1 | . 1 . . . . . . . . . . Propulsion 9 | . 2 3 3 . . . . . . 1 . Utility 5 | . . 2 . . . . . 1 1 . 1 Weapon 6 | . 2 1 . . . . 1 1 . . 1 Highest Loss Streak 4 | . 4 2 2 . . . 1 2 1 1 2 To Critical Strikes 1 | . . 1 . . . . . . . . . Average Backups 14 | 2 13 19 19 6 4 4 4 4 5 5 4 Power 1 | 1 1 1 1 . . . . . . . . Propulsion 3 | . 1 5 5 . . . . . . . . Utility 5 | . 6 7 7 2 . 1 2 1 1 1 2 Weapon 3 | . 3 4 3 2 2 2 1 1 1 1 . Tool/Special . | . . . . . . . . . . . . Unused Backups 36 | . . 16 4 5 4 . . 1 2 . 4 Power 5 | . . 3 . 1 1 . . . . . . Propulsion 4 | . . 4 . . . . . . . . . Utility 17 | . . 4 1 4 3 . . 1 2 . 2 Weapon 8 | . . 5 3 . . . . . . . . Tool/Special 2 | . . . . . . . . . . . 2 Average Slot Usage (%) 95 | . 99 98 87 97 99 98 93 88 89 89 92 Engine 9 | . 14 10 9 7 6 5 5 2 . . . Treads 16 | . 10 22 32 1 . . . . . . . Leg 6 | . 16 9 . . . . . . . . . Flight 8 | . . . . 36 33 34 31 28 28 30 32 Device 8 | . 14 6 . 6 12 11 14 17 15 15 18 Storage 8 | . 14 11 9 . . . . . . . . Processor 3 | . . . . 13 13 15 15 10 9 8 8 Protection 7 | . . 15 8 . . . . . . . . Ballistic Gun 23 | . 28 21 24 27 29 23 20 16 18 13 10 Peak Build Rating 157 | 9 9 23 36 45 62 67 75 90 95 114 157 Average Rating 31 | 6 8 17 33 41 53 66 74 80 87 103 138 On Entrance 51 | . 7 9 22 34 45 58 67 75 88 95 113 Naked Turns . | . . . . . . . . . . . . Heaviest Build 77 | 14 49 70 77 60 25 25 30 31 33 38 50 Greatest Support 80 | 40 40 60 80 26 26 31 33 31 36 45 56 Greatest Overweight (x) 15 | . 15 2 1 2 . . 7 1 9 . 1 Average Overweight (x) . | . 1 . . . . . . . . . . Largest Inventory Capacity 20 | 8 20 20 20 20 5 5 5 5 5 5 5 Average Capacity 15 | 7 19 20 20 6 5 5 5 5 5 5 5 Most Carried 20 | 5 18 20 20 20 5 5 5 5 5 5 5 Average Carried 14 | 2 13 19 19 5 4 4 4 4 4 4 4 Final Capacity 20 | 8 20 20 20 5 5 5 5 5 5 5 5 Final Carried 20 | 5 18 20 20 5 5 5 5 5 5 5 4 Class Distribution -------------------- 35% | Scavenger-Mutant 24% | Mutant 14% | Scavenger-Tank 13% | Scout 5% | Sprinter Dominant Class ---------------- Scavenger-Mutant | -10/Materials Scavenger-Mutant | -9/Materials Scavenger-Tank | -8/Materials Sprinter | -7/Factory Scout | -6/Factory Scout | -5/Factory Scout | -4/Factory Sprinter | -3/Research Hacker-Assassin | -3/Quarantine Hacker-Scout | -2/Research Hacker-Scout | -1/Access Resources | -11 -10 -9 -8 -7 -6 -5 -4 -3 -3 -2 -1 ----------- Run | Yrd Mat Mat Mat Fac Fac Fac Fac Res Qua Res Acc Matter Collected 4830 | 308 171 1179 1254 421 504 200 112 209 125 273 74 Remotely . | . . . . . . . . . . . . Salvage Created 6259 | 126 557 1787 1601 521 638 237 244 121 125 302 . Parts 323 | 13 27 114 103 18 23 3 6 5 3 8 . Haulers Intercepted 18 | . . 6 4 1 2 1 1 . 1 2 . Recyclers Shooed 6 | 1 . 2 . 1 . 2 . . . . . Parts Field Recycled . | . . . . . . . . . . . . Retrieved Matter . | . . . . . . . . . . . . Parts Self-Destructed . | . . . . . . . . . . . . Prevented . | . . . . . . . . . . . . Kills | -11 -10 -9 -8 -7 -6 -5 -4 -3 -3 -2 -1 ------- Run | Yrd Mat Mat Mat Fac Fac Fac Fac Res Qua Res Acc Combat Hostiles Destroyed 85 | . 12 35 28 5 3 . 1 1 . . . Guns 82 | . 12 34 28 3 3 . 1 1 . . . Cannons 1 | . . 1 . . . . . . . . . AOE 2 | . . . . 2 . . . . . . . Classes Destroyed 15 | 2 3 6 4 . . . . . . . . Worker 12 | . . 2 3 . . . 2 . . 5 . Builder 5 | . . . 3 . 1 . . . . 1 . Tunneler 7 | 4 . . . . . . 2 . . 1 . Hauler 18 | . . 6 4 1 2 1 1 . 1 2 . Recycler 8 | 1 1 . 1 3 1 1 . . . . . Mechanic 1 | . . 1 . . . . . . . . . Operator 6 | . . 1 1 1 1 . . 1 1 . . Watcher 6 | . 1 2 1 . 2 . . . . . . Swarmer 21 | . 3 8 7 3 . . . . . . . Grunt 38 | . 9 17 9 . 3 . . . . . . Brawler 1 | . . 1 . . . . . . . . . Sentry 18 | . . 9 5 2 . . 1 1 . . . Specialist 2 | . . . 2 . . . . . . . . Hunter 3 | . . . 3 . . . . . . . . Heavy 2 | . . . 2 . . . . . . . . Best Kill Streak 9 | 4 5 5 8 7 3 2 2 1 2 9 . Combat Bots Only 6 | . 5 5 6 5 2 . 1 1 . . . Max Kills in Single Turn 2 | 1 2 2 2 2 2 1 2 1 1 1 . Gunslinging 1 | . 1 . 1 . . . . . . . . Exploded 2 | . . . . 2 . . . . . . . Melee . | . . . . . . . . . . . . Uniques/NPCs Destroyed . | . . . . . . . . . . . . Combat | -11 -10 -9 -8 -7 -6 -5 -4 -3 -3 -2 -1 -------- Run | Yrd Mat Mat Mat Fac Fac Fac Fac Res Qua Res Acc Hostile Shots Fired 569 | . 93 186 117 29 16 . 6 34 69 3 16 Missed 198 | . 20 51 37 13 6 . 2 18 41 1 9 Hits 371 | . 73 135 80 16 10 . 4 16 28 2 7 Melee 2 | . . 2 . . . . . . . . . Projectile 369 | . 73 133 80 16 10 . 4 16 28 2 7 Critical Strikes 12 | . 2 5 3 . . . . 1 . . 1 Damage Taken 5794 | . 901 1677 1639 135 188 . 260 373 349 57 215 Core 870 | . 208 303 156 22 18 . 47 50 23 . 43 Absorbed by Shields . | . . . . . . . . . . . . Redirected to Shielding 24 | . . 24 . . . . . . . . . Regen/Repaired (Parts) 236 | . . . 132 . . . . 62 42 . . Core Remaining (%) 80 | 100 16 24 71 96 97 100 95 . 94 100 97 Volleys Fired 342 | 7 48 142 87 11 24 . 8 8 4 . 3 Largest 5 | 2 2 2 3 4 5 . 4 3 1 . 1 Hottest 123 | 40 40 53 75 98 123 . 98 98 98 . 98 Shots Fired 854 | 14 95 284 259 39 117 . 17 22 4 . 3 Gun 837 | 14 95 281 259 38 117 . 12 21 . . . Cannon 14 | . . 3 . . . . 3 1 4 . 3 Launcher 3 | . . . . 1 . . 2 . . . . Special . | . . . . . . . . . . . . Kinetic 840 | 14 95 284 259 38 117 . 12 21 . . . Thermal 11 | . . . . . . . 3 1 4 . 3 Explosive 3 | . . . . 1 . . 2 . . . . Electromagnetic . | . . . . . . . . . . . . Robot Hit Streak 31 | 6 16 21 21 7 12 . 10 31 . . . Robot Miss Streak 6 | 1 3 5 6 4 6 . 1 . . . . Penetration Max . | . . . . . . . . . . . . Secondary Targets 17 | . 4 . 11 . 2 . . . . . . Max Gunslinging Chain 1 | . 1 . 1 . 1 . . . . . . Shots Hit Robots 602 | 11 75 197 176 20 70 3 14 24 3 9 . Core Hits 256 | 7 32 83 75 15 26 . 7 7 2 2 . Critical Kills 4 | . . 1 1 . . . . . 1 1 . Critical Parts Destroyed 6 | . 1 . . . . 2 1 . . 2 . Critical Strikes 13 | . 1 3 1 . . 2 1 1 1 3 . Destroy 5 | . 1 2 1 . . . . 1 . . . Blast 1 | . . 1 . . . . . . . . . Smash 7 | . . . . . . 2 1 . 1 3 . Melee Attacks 92 | . . . 10 4 11 4 15 16 15 10 7 Impact 57 | . . . . . 2 4 15 4 15 10 7 Slashing 35 | . . . 10 4 9 . . 12 . . . Piercing . | . . . . . . . . . . . . Sneak Attacks 23 | . . . 4 2 . 2 4 . 2 9 . Combat Hostiles . | . . . . . . . . . . . . Follow-up Attacks . | . . . . . . . . . . . . Damage Inflicted 11260 | 115 682 2620 3247 628 1162 254 735 500 286 1031 . Guns 8210 | 115 680 2565 2873 310 1162 . 161 344 . . . Cannons 42 | . . 42 . . . . . . . . . Explosions 345 | . . . . 171 . . 174 . . . . Melee 2582 | . . . 308 147 . 254 400 156 286 1031 . Ramming 81 | . 2 13 66 . . . . . . . . Kinetic 8252 | 115 680 2607 2873 310 1162 . 161 344 . . . Thermal 174 | . . . . . . . 174 . . . . Explosive 171 | . . . . 171 . . . . . . . Electromagnetic . | . . . . . . . . . . . . Impact 1971 | . . . . . . 254 400 . 286 1031 . Slashing 611 | . . . 308 147 . . . 156 . . . Piercing . | . . . . . . . . . . . . Highest Corruption 12 | . 1 12 . . . . . . 1 . . Average Corruption 4 | . 1 7 . . . . . . 1 . . Corruption Purged . | . . . . . . . . . . . . Corruption Blocked . | . . . . . . . . . . . . Effects 50 | . 3 47 . . . . . . . . . Message Errors 10 | . 2 8 . . . . . . . . . Matter Fused 12 | . . 12 . . . . . . . . . Heat Flow Errors 9 | . 1 8 . . . . . . . . . Energy Discharges 4 | . . 4 . . . . . . . . . Parts Rejected 1 | . . 1 . . . . . . . . . Data Loss (minor) 9 | . . 9 . . . . . . . . . Data Loss (major) 2 | . . 2 . . . . . . . . . Misfires 2 | . . 2 . . . . . . . . . Weapon Failures 1 | . . 1 . . . . . . . . . Overload Shots . | . . . . . . . . . . . . Overflow Damage 1317 | . . . 82 20 . 163 336 39 67 610 . Projectiles . | . . . . . . . . . . . . Explosions 114 | . . . . 20 . . 94 . . . . Melee 1203 | . . . 82 . . 163 242 39 67 610 . Knockbacks 5 | . . 1 . . . 1 1 . . 2 . Impact 5 | . . 1 . . . 1 1 . . 2 . Kinetic . | . . . . . . . . . . . . Secondary . | . . . . . . . . . . . . Self-Inflicted Damage 168 | . . . . . . . 168 . . . . Shots 2 | . . . . . . . 2 . . . . Rammed 17 | . . 3 14 . . . . . . . . Targets Rammed 19 | . 1 4 14 . . . . . . . . Kicked 2 | . 1 1 . . . . . . . . . Crushed . | . . . . . . . . . . . . Highest Temperature 366 | . 94 276 362 188 366 . 90 82 . 56 301 Average Temperature 86 | . 14 57 108 71 141 . 50 28 . 20 125 Received Heat Transfer 1563 | . 507 651 153 30 90 . 27 87 9 . 9 Effects 3 | . . 1 2 . . . . . . . . Shutdowns 1 | . . . 1 . . . . . . . . Energy Bleed 1 | . . 1 . . . . . . . . . Damage (minor) 1 | . . . 1 . . . . . . . . Siege Activations . | . . . . . . . . . . . . Martial Activations . | . . . . . . . . . . . . Shielding Activations . | . . . . . . . . . . . . Robots Disrupted . | . . . . . . . . . . . . Combat Hostiles . | . . . . . . . . . . . . Robots Corrupted 6 | . . . . . . 2 . . . 4 . Combat Hostiles . | . . . . . . . . . . . . Parts Fried 17 | . . . . . . 6 4 . . 7 . Impact Corruptions 23 | . . . . . . 3 8 . 1 11 . Robots Melted . | . . . . . . . . . . . . Combat Hostiles . | . . . . . . . . . . . . Parts Melted . | . . . . . . . . . . . . Heat Transferred 100 | . . . . . . . 100 . . . . Parts Sabotaged . | . . . . . . . . . . . . Parts Stolen . | . . . . . . . . . . . . Parts Stripped . | . . . . . . . . . . . . Power Chain Reactions . | . . . . . . . . . . . . Alert | -11 -10 -9 -8 -7 -6 -5 -4 -3 -3 -2 -1 ------- Run | Yrd Mat Mat Mat Fac Fac Fac Fac Res Qua Res Acc Maximum Alert Level 2 | . . 1 2 2 1 . . 1 . . 1 Low Security (%) 62 | 100 100 54 5 17 99 100 100 89 100 100 77 Level 1 24 | . . 45 33 28 . . . 10 . . 22 Level 2 12 | . . . 61 53 . . . . . . . Level 3 . | . . . . . . . . . . . . Level 4 . | . . . . . . . . . . . . Level 5 . | . . . . . . . . . . . . High Security . | . . . . . . . . . . . . Max Security . | . . . . . . . . . . . . Peak Influence 505 | 10 164 368 505 437 202 54 160 224 173 127 259 Initial 218 | . . 12 152 218 198 47 16 72 120 91 68 Average 191 | 1 44 202 396 339 151 38 111 98 128 114 148 Influence Increases 3929 | 25 374 1081 869 298 194 27 262 312 153 73 261 Destroy 0b10 Robot/C 1700 | . 240 700 560 100 60 . 20 20 . . . Destroy 0b10 Robot/NC 315 | 25 10 60 65 25 35 10 25 5 10 45 . Destroy Leader 488 | . 52 196 170 32 8 2 12 10 2 4 . Successful Hack 197 | . 12 29 20 . 18 . . 19 18 21 60 Disable Machine 270 | . . 30 15 90 . 15 75 . 30 . 15 Destroy Structure 224 | . . 6 9 36 13 . 100 18 18 3 21 Partial Spotted 285 | . 15 . . 15 30 . 30 120 . . 75 Lose Combat Pursuer 450 | . 45 60 30 . 30 . . 120 75 . 90 Influence Decreases 3670 | 25 344 750 749 373 502 91 158 236 204 122 116 Entered New Map 1045 | . . 18 209 263 208 51 18 66 94 72 46 Time Decay 2411 | 25 300 682 510 110 294 40 130 140 100 40 40 Lost Part 194 | . 44 50 30 . . . 10 20 10 10 20 Lost Ally 20 | . . . . . . . . 10 . . 10 Squads Dispatched 33 | . 3 3 5 3 5 . 1 6 3 2 2 Investigation 9 | . 1 . 1 . 1 . . 4 2 . . Extermination 6 | . . . . . 2 . 1 . 1 1 1 Reinforcement 16 | . 2 3 4 1 2 . . 2 . 1 1 Assault . | . . . . . . . . . . . . Garrison 2 | . . . . 2 . . . . . . . Intercept . | . . . . . . . . . . . . Searches Triggered . | . . . . . . . . . . . . Construction Impeded 1 | . . 1 . . . . . . . . . Haulers Reinforced 3 | . . . . . 2 . . . . 1 . Active Scanning Responses . | . . . . . . . . . . . . Cargo Convoy Interrupts . | . . . . . . . . . . . . Stealth | -11 -10 -9 -8 -7 -6 -5 -4 -3 -3 -2 -1 --------- Run | Yrd Mat Mat Mat Fac Fac Fac Fac Res Qua Res Acc Distress Signals 14 | . . 7 3 1 . . . 1 . . 2 Communications Jammed . | . . . . . . . . . . . . Distress Signals . | . . . . . . . . . . . . Times Spotted 188 | . 21 59 41 8 8 . 2 15 12 1 21 Peak Tracking Total 14 | . 7 8 5 3 3 . 2 12 7 2 14 Tactical Retreats 17 | . 3 4 2 . 2 . . 3 1 . 2 Traps | -11 -10 -9 -8 -7 -6 -5 -4 -3 -3 -2 -1 ------- Run | Yrd Mat Mat Mat Fac Fac Fac Fac Res Qua Res Acc Traps Triggered 6 | . 2 . 3 . . . 1 . . . . Indirectly . | . . . . . . . . . . . . Trap Hack Attempts . | . . . . . . . . . . . . Triggered . | . . . . . . . . . . . . Disarmed . | . . . . . . . . . . . . Reprogrammed . | . . . . . . . . . . . . Reused . | . . . . . . . . . . . . Traps Extracted . | . . . . . . . . . . . . Installed . | . . . . . . . . . . . . Triggered . | . . . . . . . . . . . . Machines | -11 -10 -9 -8 -7 -6 -5 -4 -3 -3 -2 -1 ---------- Run | Yrd Mat Mat Mat Fac Fac Fac Fac Res Qua Res Acc Machines Disabled 18 | . . 2 1 6 . 1 5 . 2 . 1 Max in Single Turn 5 | . . 1 1 5 . 1 4 . 1 . 1 Garrison Access 2 | . . . . . . . . 1 1 . . Machines Repaired . | . . . . . . . . . . . . Machines Dismantled . | . . . . . . . . . . . . Machines Sabotaged . | . . . . . . . . . . . . Overloaded Fab Kills . | . . . . . . . . . . . . Hacking | -11 -10 -9 -8 -7 -6 -5 -4 -3 -3 -2 -1 --------- Run | Yrd Mat Mat Mat Fac Fac Fac Fac Res Qua Res Acc Machines Accessed 52 | . 3 6 6 4 7 . 2 10 8 2 4 Terminals 37 | . 2 6 4 4 3 . 1 6 6 2 3 Fabricators 3 | . . . . . 1 . 1 1 . . . Repair Stations 3 | . . . 1 . . . . 1 1 . . Recycling Units 5 | . 1 . . . 3 . . 1 . . . Scanalyzers 1 | . . . 1 . . . . . . . . Garrison Access 3 | . . . . . . . . 1 1 . 1 Total Hacks 109 | . 8 18 14 6 14 . 4 20 14 4 7 Successful 57 | . 4 13 11 1 6 . 2 8 7 2 3 Failed 52 | . 4 5 3 5 8 . 2 12 7 2 4 Catastrophic 13 | . 1 1 . 2 2 . . 3 3 1 . Database Lockouts . | . . . . . . . . . . . . Manual 10 | . . . . . . . . 4 3 . 3 Terminals 79 | . 7 18 7 6 6 . 2 14 10 4 5 Fabricators 7 | . . . . . 3 . 2 2 . . . Repair Stations 6 | . . . 2 . . . . 1 3 . . Recycling Units 8 | . 1 . . . 5 . . 2 . . . Scanalyzers 5 | . . . 5 . . . . . . . . Garrison Access 4 | . . . . . . . . 1 1 . 2 Terminal Hacks 37 | . 3 13 5 1 2 . 1 3 5 2 2 Prototype ID Bank 3 | . 1 1 1 . . . . . . . . Open Door 2 | . . . . . . . . 1 . . 1 Level Access Points 2 | . . . . . . . . . . 1 1 Branch Access Points 3 | . 1 1 . . 1 . . . . . . Emergency Access Points 6 | . 1 1 2 . . . . . 2 . . Repair Station Index 1 | . . 1 . . . . . . . . . Alert Level 6 | . . 2 . 1 1 . . . 1 1 . Locate Traps 7 | . . 4 . . . . 1 1 1 . . Dispatch Records 3 | . . . 2 . . . . 1 . . . Hauler Manifests 1 | . . 1 . . . . . . . . . Zone Layout 3 | . . 2 . . . . . . 1 . . Fabricator Hacks 5 | . . . . . 2 . 1 2 . . . Load Schematic 3 | . . . . . 1 . 1 1 . . . Build 2 | . . . . . 1 . . 1 . . . Repair Station Hacks 2 | . . . 2 . . . . . . . . Scan Component 1 | . . . 1 . . . . . . . . Repair 1 | . . . 1 . . . . . . . . Recycling Unit Hacks 3 | . 1 . . . 2 . . . . . . Report Inventory 2 | . . . . . 2 . . . . . . Retrieve Components 1 | . 1 . . . . . . . . . . Scanalyzer 4 | . . . 4 . . . . . . . . Insert Component 2 | . . . 2 . . . . . . . . Analyze 2 | . . . 2 . . . . . . . . Garrison Access Hacks 2 | . . . . . . . . 1 1 . . Seal Access 2 | . . . . . . . . 1 1 . . Unauthorized Hacks 4 | . . . . . . . . 2 1 . 1 Terminals 2 | . . . . . . . . 1 . . 1 Assimilate 2 | . . . . . . . . 1 . . 1 Fabricators . | . . . . . . . . . . . . Repair Stations 2 | . . . . . . . . 1 1 . . Patch 2 | . . . . . . . . 1 1 . . Recycling Units . | . . . . . . . . . . . . Scanalyzers . | . . . . . . . . . . . . Garrison Access . | . . . . . . . . . . . . Data Cores Recovered 3 | . . . . 1 1 . . . 1 . . Used 3 | . . . . 1 1 . . . 1 . . Hacking Detections 45 | . 3 5 4 4 7 . 2 7 7 2 4 Full Trace Events 5 | . . . . . 1 . . 3 1 . . Feedback Events 1 | . . . . . . . . . 1 . . Corruption 1 | . . . . . . . . . 1 . . Feedback Blocked . | . . . . . . . . . . . . Robot Schematics Acquired . | . . . . . . . . . . . . Robots Built . | . . . . . . . . . . . . Authchips . | . . . . . . . . . . . . Time . | . . . . . . . . . . . . Total Robot Build Rating . | . . . . . . . . . . . . Part Schematics Acquired 2 | . . . 2 . . . . . . . . Parts Built 2 | . . . . . 1 . . 1 . . . Authchips . | . . . . . . . . . . . . Time 232 | . . . . . 116 . . 116 . . . Total Part Build Rating 6 | . . . . . 3 . . 3 . . . Parts Repaired 1 | . . . 1 . . . . . . . . Time 60 | . . . 60 . . . . . . . . Parts Recycled . | . . . . . . . . . . . . Recycled Matter . | . . . . . . . . . . . . Retrieved Matter . | . . . . . . . . . . . . Retrieved Components 3 | . 3 . . . . . . . . . . Parts Scanalyzed 2 | . . . 2 . . . . . . . . Part Schematics Acquired 2 | . . . 2 . . . . . . . . Parts Damaged . | . . . . . . . . . . . . Bothacking | -11 -10 -9 -8 -7 -6 -5 -4 -3 -3 -2 -1 ------------ Run | Yrd Mat Mat Mat Fac Fac Fac Fac Res Qua Res Acc Used RIF Installer . | . . . . . . . . . . . . Robots Hacked . | . . . . . . . . . . . . Non-combat . | . . . . . . . . . . . . Combat . | . . . . . . . . . . . . Robot Hacks Applied . | . . . . . . . . . . . . Relay Couplers Released . | . . . . . . . . . . . . Fabnet Peak Effective % . | . . . . . . . . . . . . Robots Rewired . | . . . . . . . . . . . . Allies Hacked . | . . . . . . . . . . . . Hacks Repelled . | . . . . . . . . . . . . Allies | -11 -10 -9 -8 -7 -6 -5 -4 -3 -3 -2 -1 -------- Run | Yrd Mat Mat Mat Fac Fac Fac Fac Res Qua Res Acc Total Allies 2 | . . . . . . . . 1 . . 1 Largest Group 1 | . . . . . . . . 1 . . 1 Highest-Rated Group 45 | . . . . . . . . 26 . . 45 Highest-Rated Ally 45 | . . . . . . . . 26 . . 45 Total Orders . | . . . . . . . . . . . . Ally Attacks . | . . . . . . . . . . . . Total Damage . | . . . . . . . . . . . . Kills . | . . . . . . . . . . . . Allies Corrupted . | . . . . . . . . . . . . Allies Melted . | . . . . . . . . . . . . Intel | -11 -10 -9 -8 -7 -6 -5 -4 -3 -3 -2 -1 ------- Run | Yrd Mat Mat Mat Fac Fac Fac Fac Res Qua Res Acc Active Infowar (turns) 4130 | 117 1316 783 134 211 589 94 270 266 156 98 96 Sensors 1598 | . . . . 88 573 94 270 266 113 98 96 Terrain 87 | 69 . . 18 . . . . . . . . Structural 1045 | . . 225 116 127 101 3 31 144 104 98 96 Seismic 1922 | 48 1316 558 . . . . . . . . . Machine Analysis 110 | . . . . 110 . . . . . . . Cloaking 258 | . . . . . . . . 159 52 . 47 Robot Analysis Total . | . . . . . . . . . . . . Derelict Logs Recovered . | . . . . . . . . . . . . Drone Launches . | . . . . . . . . . . . . Drone Recoveries . | . . . . . . . . . . . . Exploration | -11 -10 -9 -8 -7 -6 -5 -4 -3 -3 -2 -1 ------------- Run | Yrd Mat Mat Mat Fac Fac Fac Fac Res Qua Res Acc Turns Passed 7613 | 212 1316 2783 1381 230 645 94 270 286 202 98 96 Spaces Moved 6213 | 104 452 987 580 516 1112 200 508 708 375 264 407 Core 14 | 8 1 . . . . . 1 . 4 . . Treads 1565 | 96 180 709 580 . . . . . . . . Legs 549 | . 271 278 . . . . . . . . . Wheels . | . . . . . . . . . . . . Hover . | . . . . . . . . . . . . Flight 4085 | . . . . 516 1112 200 507 708 371 264 407 Fastest Speed 10 | 50 160 160 160 27 26 22 19 22 19 12 10 Average Speed 88 | 151 251 218 181 28 26 22 22 24 27 18 13 Slowest Speed 800 | 160 800 260 243 168 27 26 400 93 500 19 77 Overloaded Moves 41 | . . . . . . . 22 . 7 12 . Propulsion Burnouts . | . . . . . . . . . . . . Robots Hopped 18 | . . . . 3 6 . . . 1 2 6 Potential Cave-ins 2 | . . . . . . . 2 . . . . Cave-ins Triggered . | . . . . . . . . . . . . Exploration Rate (%) 33 | 6 71 88 48 20 34 7 16 20 61 12 20 Regions Visited 11 Branch Regions 1 Pre-discovered Areas . | . . . . . . . . . . . . Known Exits Taken 6 | . . . . 1 1 1 1 . 1 1 . Unknown Exits Taken 5 | 1 1 1 1 . . . . 1 . . . Scrap Searched . | . . . . . . . . . . . . Spaces Dug 71 | . . . 5 7 11 . 22 9 9 1 7 Terrain Destroyed 152 | . . . 5 52 11 . 58 9 9 1 7 Melee 49 | . . . 5 1 11 . 10 8 7 1 6 Projectile 7 | . . . . . . . 3 1 2 . 1 AOE 96 | . . . . 51 . . 45 . . . . Terrain Rammed . | . . . . . . . . . . . . Walls Destroyed . | . . . . . . . . . . . . Machines Disabled . | . . . . . . . . . . . . Actions | -11 -10 -9 -8 -7 -6 -5 -4 -3 -3 -2 -1 --------- Run | Yrd Mat Mat Mat Fac Fac Fac Fac Res Qua Res Acc Total 7637 | 142 550 1374 796 574 1409 241 617 784 436 291 423 Wait 600 | 19 27 107 43 6 219 34 74 33 23 10 5 Move 6165 | 103 451 986 579 509 1099 199 507 707 372 259 394 Hop 18 | . . . . 3 6 . . . 1 2 6 Pick Up 93 | 5 16 37 7 4 11 2 1 5 4 1 . Fast Attach 75 | 7 2 17 14 5 7 . 4 4 6 3 6 Attach 37 | . 3 10 5 8 2 2 1 3 1 1 1 Detach 14 | . . 3 6 1 1 . . 2 . 1 . Swap 66 | 1 1 17 12 10 13 . 7 . 4 1 . Drop 116 | . 1 51 19 13 16 . . 6 6 3 1 Fire 342 | 7 48 142 87 11 24 . 8 8 4 . 3 Melee 92 | . . . 10 4 11 4 15 16 15 10 7 Ram . | . . . . . . . . . . . . Kick 2 | . 1 1 . . . . . . . . . Crush 17 | . . 3 14 . . . . . . . . Escape Stasis . | . . . . . . . . . . . . Rewire . | . . . . . . . . . . . . Trap . | . . . . . . . . . . . . Miscellaneous . | . . . . . . . . . . . . Route ------- -11/Scrapyard -10/Materials (discovered 3 exits: *Mat / Min / [*Sub]) -9/Materials (discovered 5 exits: *Mat x3 / *Min x2) -8/Materials -7/Factory -6/Factory (discovered 5 exits: *Fac / Low x2 / Ext x2) -5/Factory (discovered 2 exits: *Fac / *Upp) -4/Factory -3/Research -3/Quarantine -2/Research (discovered 3 exits: *Acc x3) -1/Access To Epsilon Eridani History --------- Turn | Location | Event 10 | -11/Scrapyard | Discovered new exit (range 16) 213 | -11/Scrapyard | Entered Materials 285 | -10/Materials | Identified exit to Mines 314 | -10/Materials | Build established: Mutant 710 | -10/Materials | Core integrity fell below 50% 750 | -10/Materials | Lost 4 parts (1p2n1w) 994 | -10/Materials | Discovered new exit (range 8) 1023 | -10/Materials | Build established: Scavenger-Mutant 1283 | -10/Materials | Core integrity fell below 20% 1397 | -10/Materials | Discovered new exit (range 9) 1529 | -10/Materials | Entered another Materials area 1529 | -9/Materials | Evolved 2 slots: Propulsion x1, Utility x1 2025 | -9/Materials | Discovered new exit (range 9) 2412 | -9/Materials | Discovered new exit (range 16) 2435 | -9/Materials | Core integrity fell below 50% 3110 | -9/Materials | Identified exit to Mines 3239 | -9/Materials | Build established: Mutant 3621 | -9/Materials | Discovered new exit (range 8) 3999 | -9/Materials | System corruption reached 10% 4088 | -9/Materials | Discovered new exit (range 16) 4312 | -9/Materials | Entered another Materials area 4312 | -8/Materials | Evolved 2 slots: Propulsion x1, Weapon x1 4984 | -8/Materials | Build established: Scavenger-Tank 5286 | -8/Materials | Discovered new exit (range 16) 5409 | -8/Materials | Repaired Enh. Autogun? 5693 | -8/Materials | Entered Factory 5693 | -7/Factory | Evolved 2 slots: Propulsion x1, Weapon x1 5789 | -7/Factory | Garrison activated, responded to threat 5906 | -7/Factory | Discovered new exit (range 13) 5909 | -7/Factory | Identified exit to Factory 5923 | -7/Factory | Entered another Factory area 5923 | -6/Factory | Evolved 2 slots: Utility x1, Weapon x1 6056 | -6/Factory | Fabricated Enh. Autogun (x1) 6264 | -6/Factory | Build established: Scout 6323 | -6/Factory | Found Prototype Processor 6323 | -6/Factory | Identified Exp. Targeting Computer 6388 | -6/Factory | Noticed a derelict Sapper rigging charges 6424 | -6/Factory | Identified exit to Lower Caves 6424 | -6/Factory | Identified exit to Extension 6555 | -6/Factory | Discovered new exit (range 9) 6559 | -6/Factory | Identified exit to Factory 6568 | -6/Factory | Entered another Factory area 6568 | -5/Factory | Evolved 2 slots: Propulsion x1, Utility x1 6603 | -5/Factory | Discovered new exit (range 15) 6606 | -5/Factory | Identified exit to Upper Caves 6658 | -5/Factory | Discovered new exit (range 8) 6660 | -5/Factory | Identified exit to Factory 6662 | -5/Factory | Entered another Factory area 6662 | -4/Factory | Evolved 2 slots: Power x1, Utility x1 6928 | -4/Factory | Discovered new exit (range 13) 6932 | -4/Factory | Identified exit to Research 6932 | -4/Factory | Entered Research 6932 | -3/Research | Evolved 2 slots: Propulsion x1, Utility x1 7097 | -3/Research | Fabricated Enh. Autogun? 7138 | -3/Research | Spotted B-86 Titan 7216 | -3/Research | Discovered new exit (range 9) 7218 | -3/Research | Entered Quarantine 7271 | -3/Quarantine | Found Prototype Processor 7271 | -3/Quarantine | Identified Exp. Signal Interpreter 7384 | -3/Quarantine | Found Alien Artifact 7384 | -3/Quarantine | Identified Terrabomb 7384 | -3/Quarantine | Used Terrabomb 7392 | -3/Quarantine | Found Terrabomb 7408 | -3/Quarantine | Found Alien Artifact 7409 | -3/Quarantine | Identified Subatomic Replicator 7409 | -3/Quarantine | Used Subatomic Replicator to replicate Cld. VTOL Module 7418 | -3/Quarantine | Discovered new exit (range 8) 7420 | -3/Quarantine | Spotted Alpha 7 7420 | -3/Quarantine | Identified exit to Research 7420 | -3/Quarantine | Entered Research 7420 | -2/Research | Evolved 2 slots: Propulsion x1, Utility x1 7422 | -2/Research | Identified exit to Access 7518 | -2/Research | Entered Access 7518 | -1/Access | Evolved 2 slots: Propulsion x1, Utility x1 7522 | -1/Access | Identified exit to Surface 7614 | *** | Escaped! Last Messages --------------- 1I. 07579_ Cloaking Device destroyed. 07579_ Imp. Assault Rifle destroyed. 07584_ Acquired 74 matter. 07586_ Acquired Adv. Power Amplifier. 07594_ Slug penetrates Wall. 07594_ TF Node disabled. 07594_ Adv. Sensor Array tumbles out of TF Node. 07594_ Adv. Signal Interpreter tumbles out of TF Node. 07594_ W-44 Eye sends out distress signal. 07597_ Acquired Prototype Impact Weapon. 07597_ Identified Gravity Flail. 07603_ Slug penetrates Wall. 07607_ K-01 Serf destroyed. 07610_ Penetrated by Slug. 07613_ Connecting with Terminal... >>Open(Door) Sealed Barrier opened. 07613_ The Access Shell folds into the floor. Map ----- +----------------------------------------------------+ | ?????????????????????????????????????????????????? | | ?????????????????????????????????????????????????? | | ?????????????????????????????????????????????????? | | ?????????????????????????????????????????????????? | | ?????????????????????????????????????????????????? | | ?????????????????????????????????????????????????? | | ?????????????????????????????????????????????????? | | ?????????????????????????????????????????????????? | | ?????????????????????????????????????????????????? | | ?????????????????????????????????????????????????? | | ?????????????????????????????????????????????????? | | ?????????????????????????????????????????????????? | | ????????? # ?????????????????????????????????????? | | ????????? # ?????????????????????????????????????? | | ????????? + ????????????????????????????????????? | | ????????? # ????????????????????????????????????? | | ????????? # ????????????????????????????????????? | | ?????????## A##???#####??????????????????????????? | | ?????????## ###################?????????????????? | | ?????????## ####### ###########?????????????????? | | ?????????## """T""" ""?????????????????? | | ?????????## k""" """ "????BB????????????? | | ?????????##k "????BB????????????? | | ?????????## "??????????????????? | | ?????????## "" "??????????????????? | | ?????????## @" "??????????????????? | | ?????????## "??????????????????? | | ?????????## "????BB????????????? | | ?????????## "????BB????????????? | | ?????????## ""?????????????????? | | ?????????## ####### ###########?????????????????? | | ### ####### ###################?????????????????? | | ###+####### u##???#####??????????????????????????? | | # k##??????????????????????????????????? | | # ##?############?????????????????????? | | + ##?############?????????????????????? | | # # ? ##?????????????????????? | | ! # # ? ????????????????????????? | | # # ?????????????????????????? | | # # ?????????????????????????? | | """ """? # # "" ?????????????????????????? | | """T"""? # # "" ??????????????????????????? | | ########### + """""????????????????????????????? | | ########### # """""????????????????????????????? | | ??## # "" ????????????????????????????? | | ??## # "" ????????????????????????????? | | ??## ## ???????????????????????????? | | ??## ## ????????????????????????? | | ??## ##?+#########????????????????????????? | | #### ### # ????????????????????????? | +----------------------------------------------------+ Best States ------------- Heat Dissipation 83 Energy Generation 62 Energy Capacity 280 Matter Stores 300 Matter Capacity 300 Sight Range 16 Robot Scan Range 16 Terrain Scan Range 16 Terrain Scan Density 10 Cloak Strength 2 Power Amplification 60 Armor Coverage 600 Resistance: TH 25 Utility Shielding 33 Evasion (%) 67 Targeting Accuracy 12 Core Analysis 6 Recoil Reduction 4 Offensive Hacking 22 Item Schematics ----------------- Enh. Autogun | -8/Materials | Scanalyzed Cld. Ion Engine | -8/Materials | Scanalyzed Robot Schematics ------------------ None Fabricated ------------ Enh. Autogun | x1 | -6/Factory Enh. Autogun | x1 | -3/Research Repaired ---------- Enh. Autogun | 17% | -8/Materials Alien Tech Used ----------------- Terrabomb Subatomic Replicator Achievements -------------- None Challenges ------------ None Game ------ Seed DirectedWeaponReplicator Manual? 0 Play Time 02:19:33 Cumulative 308.5 hours Start 2025.07.13 @ 19:25:20 End 2025.07.16 @ 22:57:46 Sessions 7 Manual Loads 0 Difficulty Rogue Special Mode None Game No. 159 Rogue 151 Adventurer 8 Explorer 0 Win Type 0 Total 19 Types 11/0/3/2/0/0/1/0/1/1 Lore% 88 Gallery% 88 Achievement% 83 Wizard Run 0 Options --------- Layout 2 ASCII 0 Keyboard 1 Movement Numpad Keybinds 1 Fullscreen 1 Font 24/Smallcaps Map View 50x44 Zoom Use 0% Tactical HUD 1 Map Filters SATURATION(78)|BRIGHTNESS(125) Filters SHIFT_HUE(220) Steam 1 RUN: bd6ffbe4-5b47-4609-8b3e-045ac831c36b